bitfinex/quotes_ETHUSD_20240916
["timestamp","ask_amount","ask_price","bid_price","bid_amount"]
[1726509157480,0.5044832,2306.4,2305.9,4.2717]
[1726509157987,0.5044832,2306.4,2306.0,0.0627878]
[1726509158196,4.8403632,2306.4,2306.0,0.0627878]
[1726509158401,4.33627,2306.2,2306.0,0.0627878]
[1726509158562,8.67252,2306.2,2306.0,0.0627878]
[1726509158768,4.33632,2306.1,2306.0,0.0627878]
[1726509159101,4.33625,2306.2,2305.7,4.3552]
[1726509159303,4.33633,2306.1,2305.8,0.06192515]
[1726509159459,4.33625,2306.2,2305.7,4.3552]
[1726509159660,4.33625,2306.2,2305.8,0.06192515]
[1726509159967,4.33625,2306.2,2305.4,4.33752]
[1726509159968,8.67319,2306.0,2305.4,4.33752]
[1726509160165,8.67319,2306.0,2305.9,0.0618493]
[1726509160166,4.33657,2306.0,2305.9,0.0618493]
[1726509160397,5.6669815,2306.0,2305.4,4.33752]
[1726509160859,1.3304115,2306.0,2305.5,4.39949275]
[1726509161060,8.6728,2306.1,2305.5,4.39947275]
[1726509161465,0.55,2306.1,2305.6,4.1361]
[1726509161807,0.55,2306.1,2305.7,0.06200101]
[1726509161808,4.88648,2306.1,2305.7,0.06200101]
[1726509161970,9.6213125,2306.1,2305.7,0.06200101]
[1726509162178,5.2848325,2306.1,2305.7,0.06200101]
[1726509162380,9.6212925,2306.1,2305.7,0.06200101]
[1726509162680,5.2847925,2306.1,2305.7,0.06200101]
[1726509163058,4.33663,2306.0,2305.7,0.06200101]
[1726509163261,4.33621,2306.2,2305.7,0.06200101]
[1726509163693,4.33621,2306.2,2305.7,4.39905101]
[1726509163856,4.33621,2306.2,2305.7,0.06200101]
[1726509164059,3.0,2306.4,2305.7,0.06200101]
[1726509164060,4.33648,2306.1,2305.7,0.06200101]
[1726509164257,8.67297,2306.1,2305.7,0.06200101]
[1726509164500,4.33663,2306.0,2305.7,0.06200101]
[1726509165067,4.33653,2306.0,2305.7,0.06200101]
[1726509165267,0.55,2306.1,2305.7,0.06200101]
[1726509165466,4.88644,2306.1,2305.7,0.06200101]
[1726509165801,4.33654,2306.0,2305.7,0.06200101]
[1726509165998,9.22292,2306.1,2305.7,0.06200101]
[1726509166203,5.2961827,2306.0,2305.7,0.06200101]
[1726509166903,4.33688,2305.8,2305.7,0.06200101]
[1726509167072,4.3367,2305.9,2305.3,8.5194]
[1726509167401,4.3367,2305.9,2305.4,4.39985863]
[1726509167579,5.37101527,2305.9,2305.4,4.39985863]
[1726509167986,5.37101527,2305.9,2305.4,0.06222863]
[1726509168201,4.3367,2305.9,2305.4,4.39968863]
[1726509168384,4.3367,2305.9,2305.4,8.73722863]
[1726509168582,4.3367,2305.9,2305.4,4.39968863]
[1726509169315,5.80466027,2305.9,2305.4,4.39976863]
[1726509169482,5.80466027,2305.9,2305.5,4.33741]
[1726509169813,4.33707,2305.8,2305.6,0.06230298]
[1726509170015,5.0135013,2305.8,2305.6,0.06230298]
[1726509170219,4.33727,2305.6,2305.3,4.1817]
[1726509170423,4.98523616,2305.7,2305.3,4.1817]
[1726509170602,4.98523616,2305.7,2305.4,0.06245474]
[1726509170603,0.64814616,2305.7,2305.4,0.06245474]
[1726509170909,9.2249,2305.5,2305.4,0.06245474]
[1726509171215,4.33798,2305.3,2305.0,4.1744]
[1726509171580,0.55,2305.5,2305.1,4.33819]
[1726509171778,4.88746,2305.5,2305.1,4.33819]
[1726509172105,4.33736,2305.6,2305.1,4.33819]
[1726509172285,4.33736,2305.6,2305.1,4.33811]
[1726509173078,4.33736,2305.6,2305.1,8.67622]
[1726509173281,5.27243913,2305.6,2305.1,4.33811]
[1726509173612,0.93507913,2305.6,2305.0,4.1744]
[1726509173815,5.27243913,2305.6,2305.0,8.51262]
[1726509173990,5.16470391,2305.5,2305.0,12.85091]
[1726509174312,5.16470391,2305.5,2305.1,4.33819]
[1726509174902,4.33729,2305.6,2305.1,4.33819]
[1726509175113,7.33719,2305.7,2305.1,4.33809]
[1726509175294,7.33719,2305.7,2305.0,4.1744]
[1726509175295,4.33755,2305.5,2305.0,8.51261]
[1726509175491,5.13865213,2305.6,2305.1,4.33811]
[1726509176701,4.33749,2305.5,2305.0,8.51261]
[1726509176902,5.28510421,2305.5,2305.0,8.51261]
[1726509177116,4.33766,2305.4,2305.0,8.51261]
[1726509177317,9.62273421,2305.5,2305.0,8.51261]
[1726509177491,5.28510421,2305.5,2305.0,8.51261]
[1726509177820,8.67512,2305.5,2305.0,8.51261]
[1726509178521,4.33769,2305.4,2305.0,8.51261]
[1726509178726,8.0133213,2305.8,2305.0,4.1744]
[1726509179018,4.33756,2305.5,2305.0,8.51276]
[1726509179219,0.433756,2305.4,2305.0,8.51276]
[1726509179437,4.33754,2305.5,2305.0,4.1744]
[1726509179626,4.33754,2305.5,2305.1,4.33817]
[1726509179834,4.33754,2305.5,2305.0,12.851]
[1726509180039,4.33868,2304.9,2304.7,4.5032]
[1726509180203,4.33886,2304.8,2304.3,8.77602]
[1726509180526,4.33886,2304.8,2304.3,4.4364]
[1726509180752,0.55,2305.0,2304.4,4.33941]
[1726509180962,4.33859,2304.9,2304.3,8.776]
[1726509181246,4.33877,2304.8,2304.3,8.776]
[1726509182432,4.33896,2304.7,2304.3,4.4364]
[1726509182628,4.33912,2304.7,2304.3,4.4364]
[1726509183036,2.71865172,2305.6,2305.1,4.1685]
[1726509183037,4.33736,2305.6,2305.1,4.1685]
[1726509183213,4.33801,2305.2,2305.1,4.1685]
[1726509183417,4.74537145,2306.1,2304.5,4.1685]
[1726509183418,4.33874,2304.9,2304.5,4.1685]
[1726509183627,4.291,2305.5,2304.5,4.1685]
[1726509183628,8.67672,2305.1,2304.5,4.1685]
[1726509183869,8.67672,2305.1,2304.5,8.50781]
[1726509183870,4.33836,2305.1,2304.5,8.50781]
[1726509184024,4.33859,2304.9,2304.5,4.1685]
[1726509184227,4.33839,2305.1,2304.5,4.1685]
[1726509184418,4.33839,2305.1,2304.5,8.50778]
[1726509184957,8.67677,2305.1,2304.5,4.1685]
[1726509185129,4.33841,2305.0,2304.5,4.1685]
[1726509185331,4.33858,2304.9,2304.5,4.1685]
[1726509185557,0.867679,2305.0,2304.0,0.0380177]
[1726509185558,4.33895,2304.7,2304.6,0.0620924]
[1726509185853,4.33895,2304.7,2304.1,8.54919]
[1726509186054,5.206735,2304.7,2304.6,0.0620924]
[1726509186365,5.756735,2304.7,2304.6,0.0620924]
[1726509186520,4.33972,2304.3,2304.0,0.0380177]
[1726509186727,4.34002,2304.2,2304.1,0.06247215]
[1726509186917,4.33972,2304.3,2304.1,0.06247215]
[1726509187268,8.55688,2304.5,2304.1,0.06247215]
[1726509187269,9.2298,2304.2,2304.1,0.06247215]
[1726509187415,4.2174,2304.5,2304.0,0.0380177]
[1726509187416,4.89008,2304.1,2304.0,0.0380177]
[1726509188056,0.55,2304.1,2304.0,0.0380177]
[1726509188277,4.3399,2304.2,2304.0,0.0380177]
[1726509188629,4.33972,2304.3,2304.0,0.0380177]
[1726509188831,5.195425,2304.3,2304.0,0.0380177]
[1726509189155,8.195445,2304.3,2304.0,0.0380177]
[1726509189333,3.0,2304.3,2304.0,0.0380177]
[1726509192068,4.88934,2304.5,2304.0,4.3782777]
[1726509192628,3.45431451,2304.7,2304.1,4.3399]
[1726509192853,3.0,2304.5,2304.1,4.3399]
[1726509193258,3.0,2304.6,2304.2,4.33989]
[1726509193460,3.0,2304.6,2304.1,4.3399]
[1726509193461,7.33915,2304.6,2304.1,4.3399]
[1726509193661,8.956486,2304.6,2304.1,4.3399]
[1726509193869,4.617336,2304.6,2304.1,4.3399]
[1726509194059,8.956566,2304.6,2304.1,4.3399]
[1726509195981,4.617336,2304.6,2304.1,4.3399]
[1726509196175,7.33904,2304.7,2304.2,4.33976]
[1726509196882,4.7924429,2305.1,2304.6,4.33904]
[1726509196883,8.9886629,2305.1,2304.6,4.33904]
[1726509197178,4.33802,2305.2,2304.7,4.33883]
[1726509197338,8.53404,2305.3,2304.8,4.33875]
[1726509197540,4.33794,2305.3,2304.8,8.79357]
[1726509197739,4.33802,2305.2,2304.9,0.06270819]
[1726509198184,8.67589,2305.3,2304.9,0.06270819]
[1726509198336,3.0,2305.2,2304.9,0.06270819]
[1726509199153,7.33804,2305.2,2304.9,0.06270819]
[1726509200154,3.0,2305.2,2304.9,0.06270819]
[1726509200774,7.33817,2305.2,2304.9,0.06270819]
[1726509201158,3.0,2305.2,2304.9,0.06270819]
[1726509201482,7.33802,2305.2,2304.9,0.06270819]
[1726509201781,3.0,2305.2,2304.9,0.06270819]
[1726509202482,3.0,2305.2,2305.0,4.33829]
[1726509202652,4.33735,2305.6,2305.1,4.3382]
[1726509202853,4.33735,2305.6,2305.1,4.40039278]
[1726509203055,4.33726,2305.6,2305.2,4.33801]
[1726509203260,8.67439,2305.7,2305.2,4.33801]
[1726509203467,0.857957,2305.6,2305.3,0.06199984]
[1726509203901,3.857957,2305.6,2305.2,4.33801]
[1726509204250,3.857957,2305.6,2305.3,0.06187641]
[1726509204595,0.8195127,2305.5,2305.0,4.33829]
[1726509204894,7.33745,2305.5,2305.4,0.06164283]
[1726509205086,4.33745,2305.5,2305.0,8.67652]
[1726509205387,8.5907267,2305.5,2305.1,4.3382]
[1726509205549,4.2532767,2305.5,2305.1,4.40007051]
[1726509206753,8.5907667,2305.5,2305.1,0.06187051]
[1726509206947,1.37860837,2305.4,2305.1,0.06187051]
[1726509208494,7.33749,2305.5,2305.1,0.06187051]
[1726509208695,7.33749,2305.5,2305.1,4.40004051]
[1726509209570,4.33765,2305.4,2305.1,0.06187051]
[1726509209799,4.33765,2305.4,2305.0,4.33838]
[1726509210100,4.33765,2305.4,2305.2,0.06153401]
[1726509210101,5.5909467,2305.4,2305.2,0.06153401]
[1726509210399,5.5909467,2305.4,2305.3,0.06145812]
[1726509210752,4.33786,2305.3,2304.9,4.33856]
[1726509210955,4.33786,2305.3,2305.0,0.06169267]
[1726509210956,4.33812,2305.2,2305.0,0.06169267]
[1726509211270,4.33812,2305.2,2304.8,8.7935]
[1726509211472,5.78001317,2305.2,2305.1,0.06161677]
[1726509211703,4.33837,2305.1,2304.5,4.444]
[1726509211863,21.54230548,2305.1,2304.7,4.3388]
[1726509212201,19.84,2305.1,2304.7,4.33887]
[1726509212556,19.84,2305.1,2304.9,4.33855]
[1726509212855,19.84,2305.1,2304.7,8.67779]
[1726509213055,4.33867,2304.9,2304.5,4.444]
[1726509213493,4.33851,2305.0,2304.5,8.78322]
[1726509213712,19.84,2305.1,2304.7,4.33883]
[1726509213868,19.84,2305.1,2304.8,4.33874]
[1726509215601,19.84,2305.1,2304.9,0.06193315]
[1726509216664,4.33805,2305.2,2304.9,0.06193315]
[1726509217159,6.41502555,2305.2,2304.9,0.06193315]
[1726509217503,2.07697555,2305.2,2304.6,8.67806]
[1726509217798,4.33823,2305.1,2304.6,8.67806]
[1726509217999,7.39754956,2305.1,2304.7,0.06209871]
[1726509218350,7.39755956,2305.1,2304.7,0.06209871]
[1726509218486,8.67732,2304.9,2304.7,0.06209871]
[1726509218662,4.33879,2304.8,2304.4,4.33948]
[1726509218865,4.33923,2304.6,2304.1,8.82192]
[1726509219076,24.17923,2304.6,2304.5,0.06227801]
[1726509219271,19.84,2304.6,2304.3,4.33966]
[1726509219472,19.84,2304.6,2304.5,0.06227801]
[1726509219692,19.84,2304.6,2304.5,4.33933]
[1726509219872,19.84,2304.6,2304.5,0.0624289]
[1726509220273,19.84,2304.6,2304.5,4.4017589]
[1726509220503,19.84,2304.6,2304.5,14.09719979]
[1726509220879,19.84,2305.1,2304.7,4.33885]
[1726509221086,4.33812,2305.2,2304.8,4.33875]
[1726509221087,19.84,2305.2,2304.8,4.33875]
[1726509221409,19.84,2305.2,2304.9,4.33856]
[1726509221577,19.84,2305.2,2304.9,13.13863]
[1726509221772,19.84,2305.2,2305.0,0.06262537]
[1726509221974,4.33738,2305.6,2305.0,0.06262537]
[1726509222163,24.17738,2305.6,2305.1,4.3382]
[1726509222368,24.17738,2305.6,2305.2,0.06232952]
[1726509222369,4.33738,2305.6,2305.2,0.06232952]
[1726509223490,4.33738,2305.6,2304.9,8.80001]
[1726509223679,12.27930423,2305.6,2305.0,4.33838]
[1726509223882,8.67474,2305.6,2305.0,4.40053217]
[1726509224081,4.33748,2305.5,2305.0,0.06215217]
[1726509224311,4.33736,2305.6,2305.0,0.94836839]
[1726509224715,8.67474,2305.6,2305.0,5.28673839]
[1726509224873,8.67474,2305.6,2305.0,4.40052217]
[1726509225179,4.33736,2305.6,2305.0,4.40052217]
[1726509225501,4.33736,2305.6,2305.1,4.3381]
[1726509225712,19.84,2305.5,2305.1,4.3381]
[1726509225905,19.84,2305.5,2305.2,0.06200037]
[1726509226912,24.94714743,2305.5,2305.2,0.06200037]
[1726509227084,20.60964743,2305.5,2305.0,4.33838]
[1726509227581,20.60964743,2305.5,2305.1,4.40027627]
[1726509227812,19.84,2305.5,2305.1,4.40027627]
[1726509228484,19.84,2305.5,2305.1,4.40017627]
[1726509228890,19.84,2305.5,2305.4,8.67528]
[1726509229089,23.02003973,2306.2,2305.5,4.2857]
[1726509229304,19.84,2306.3,2306.0,4.33647]
[1726509229511,19.84,2306.4,2306.0,4.33647]
[1726509229812,19.84,2306.4,2306.1,0.0612833]
[1726509229813,20.98039179,2306.4,2306.1,0.0612833]
[1726509230030,0.0380177,2306.7,2306.1,4.38567526]
[1726509230319,0.0380177,2306.7,2306.2,4.2857]
[1726509230540,0.0380177,2306.7,2306.4,4.3356]
[1726509230681,0.0380177,2306.7,2306.5,4.33555]
[1726509230876,0.0380177,2306.7,2306.5,4.39631066]
[1726509231622,0.0380177,2306.7,2306.5,0.06076066]
[1726509232007,8.7387277,2306.7,2306.5,0.06076066]
[1726509232217,0.87387277,2306.6,2306.5,0.06076066]
[1726509232378,0.87387277,2306.6,2306.2,8.62172]
[1726509232580,5.20927277,2306.6,2306.3,0.05880843]
[1726509232779,5.20927277,2306.6,2306.2,4.2857]
[1726509233018,0.96127905,2306.5,2306.3,0.05880843]
[1726509233215,4.3354,2306.6,2306.3,0.05880843]
[1726509233517,4.3354,2306.6,2306.4,0.05873261]
[1726509233725,5.64280577,2306.6,2306.1,4.33622]
[1726509234119,5.64280577,2306.6,2306.2,0.05888425]
[1726509238141,9.97830577,2306.6,2306.2,0.05888425]
[1726509238330,4.3354,2306.6,2306.2,0.05888425]
[1726509238794,4.33566,2306.5,2306.2,0.05888425]
[1726509239000,4.33566,2306.5,2306.0,4.33648]
[1726509239197,4.33566,2306.5,2306.1,0.05896009]
[1726509239435,0.87090777,2306.5,2306.1,4.39525009]
[1726509240448,4.3354,2306.6,2306.1,4.39525009]
[1726509240740,4.33588,2306.4,2306.1,0.05896009]
[1726509241023,4.33588,2306.4,2305.9,8.75409]
[1726509241024,4.33614,2306.2,2305.9,4.4174]
[1726509241305,4.33596,2306.3,2306.2,0.05888425]
[1726509241436,4.33596,2306.3,2305.9,8.75406]
[1726509241640,4.33596,2306.3,2305.9,4.4174]
[1726509241838,8.672,2306.3,2306.0,0.05903593]
[1726509242162,5.657136,2306.3,2306.0,0.05903593]
[1726509243036,4.33623,2306.2,2306.0,0.05903593]
[1726509243239,28.51264,2306.1,2306.0,0.05903593]
[1726509243441,28.51264,2306.1,2305.6,4.3378]
[1726509243442,4.33666,2306.0,2305.6,4.3378]
[1726509243680,19.84,2306.0,2305.8,4.33679]
[1726509243882,19.84,2306.0,2305.9,13.0112]
[1726509244191,19.6075,2306.0,2305.9,21.64497825]
[1726509244341,19.14791728,2306.0,2305.9,21.64497825]
[1726509245039,0.0380177,2306.7,2306.1,4.2945]
[1726509245239,0.0380177,2306.7,2306.5,8.63002]
[1726509245555,0.0380177,2306.7,2306.6,0.05912892]
[1726509245957,0.0380177,2306.7,2306.6,4.39450892]
[1726509246280,0.0380177,2306.7,2306.6,21.63124537]
[1726509246494,0.0380177,2306.7,2306.6,22.41865981]
[1726509246653,0.0380177,2307.4,2307.3,12.81204]
[1726509246983,0.0380177,2307.4,2307.3,21.44218181]
[1726509247294,0.0380177,2307.4,2307.3,25.77625181]
[1726509247586,0.0380177,2307.4,2307.3,21.88453445]
[1726509247771,0.0380177,2307.4,2307.3,26.21860445]
[1726509248077,0.0380177,2308.1,2308.0,4.3373]
[1726509248381,0.0380177,2308.1,2308.0,21.71675487]
[1726509248595,0.0380177,2308.1,2308.0,23.04487601]
[1726509248795,0.0380177,2308.1,2308.0,18.71212601]
[1726509248955,0.0380177,2308.1,2308.0,23.04487601]
[1726509249161,0.0380177,2308.1,2308.0,27.29098417]
[1726509249513,0.0380177,2308.8,2308.7,8.66874]
[1726509249798,0.0380177,2308.8,2308.7,4.39315529]
[1726509251165,0.0380177,2308.8,2308.7,8.72459529]
[1726509251594,0.0380177,2308.8,2308.7,4.39315529]
[1726509252365,0.0380177,2308.8,2308.7,0.05585529]
[1726509252665,0.0380177,2308.8,2308.7,4.33144]
[1726509252884,0.0380177,2308.8,2308.7,0.90087736]
[1726509253402,0.0380177,2308.8,2308.7,0.05300336]
[1726509253561,0.0380177,2308.8,2308.5,4.1473]
[1726509253763,0.0380177,2308.8,2308.6,0.05308586]
[1726509253958,4.3693277,2308.8,2308.6,0.05308586]
[1726509254194,4.3693277,2308.8,2308.2,4.1473]
[1726509254500,4.3693277,2308.8,2308.3,0.05329241]
[1726509254717,0.0380177,2308.8,2308.3,0.05329241]
[1726509254887,0.0380177,2308.8,2307.8,4.3815]
[1726509254888,4.33157,2308.7,2307.8,4.3815]
[1726509255245,4.33213,2308.4,2307.9,0.43815]
[1726509255494,4.33181,2308.5,2307.9,0.05175613]
[1726509255495,8.66379,2308.5,2307.9,0.05175613]
[1726509255700,8.66379,2308.5,2307.9,0.49508174]
[1726509255701,4.33188,2308.5,2307.9,0.49508174]
[1726509255912,4.33213,2308.4,2307.9,0.05175613]
[1726509256693,4.33252,2308.2,2307.9,0.05175613]
[1726509256897,4.33275,2308.0,2307.9,0.05175613]
[1726509257406,4.33275,2308.0,2307.5,4.2311]
[1726509257407,4.33307,2307.9,2307.5,4.2311]
[1726509257603,4.33307,2307.9,2307.6,0.05198332]
[1726509257987,4.33316,2307.8,2307.6,0.05198332]
[1726509258160,4.8079352,2308.0,2307.2,4.2311]
[1726509258512,8.66767,2307.5,2307.3,0.05221056]
[1726509258711,4.33383,2307.5,2307.3,0.05221056]
[1726509258866,4.3342,2307.3,2306.9,4.664589]
[1726509259064,3.91257352,2307.9,2306.9,4.664589]
[1726509259065,4.33378,2307.5,2306.9,4.2311]
[1726509259573,7.33333,2307.7,2306.9,4.2311]
[1726509259816,4.33483,2306.9,2306.5,4.3499]
[1726509259984,4.33444,2307.1,2306.5,4.3499]
[1726509260185,4.33444,2307.1,2306.6,0.43499]
[1726509260393,4.33466,2307.0,2306.6,0.43499]
[1726509260594,4.7502713,2307.5,2306.5,4.3499]
[1726509260595,8.76735,2307.2,2306.7,0.05266522]
[1726509260801,4.33486,2306.9,2306.5,4.3499]
[1726509261107,4.33532,2306.7,2306.6,0.05274102]
[1726509261276,8.67068,2306.7,2306.6,0.05274102]
[1726509261483,9.644085,2307.2,2306.2,8.54293]
[1726509261484,4.33489,2306.9,2306.2,8.54293]
[1726509261702,4.33489,2306.9,2306.3,0.42068]
[1726509262006,4.3354,2306.6,2306.3,0.47364846]
[1726509262162,4.3354,2306.6,2306.3,0.05296846]
[1726509262371,4.3354,2306.6,2306.2,4.2068]
[1726509262589,8.67019,2306.8,2306.3,0.05296846]
[1726509262800,8.67019,2306.8,2306.3,0.85960485]
[1726509262982,4.33521,2306.7,2306.4,0.05289264]
[1726509263183,8.67017,2306.8,2306.4,0.05289264]
[1726509263507,4.33472,2307.0,2306.4,0.65152136]
[1726509263730,4.33484,2306.9,2306.4,4.90045239]
[1726509263878,8.66879,2307.2,2306.4,4.90045239]
[1726509264220,8.66874,2307.2,2306.6,4.33535]
[1726509264519,8.66878,2307.2,2306.7,0.05266522]
[1726509264878,4.33436,2307.2,2306.5,4.82559524]
[1726509265072,4.33436,2307.2,2306.8,0.05258943]
[1726509265276,4.33436,2307.2,2306.6,5.3026555]
[1726509265496,8.66875,2307.2,2306.9,0.05251364]
[1726509265684,8.66875,2307.2,2306.6,5.3026555]
[1726509265891,8.66875,2307.2,2307.0,0.05415219]
[1726509266113,4.33445,2307.1,2306.6,5.3026555]
[1726509266315,4.33467,2307.0,2306.6,0.9673155]
[1726509266692,4.33436,2307.2,2306.6,0.9673155]
[1726509267298,4.33446,2307.1,2306.6,0.9673155]
[1726509267618,4.33446,2307.1,2306.5,0.49004524]
[1726509267829,8.09107113,2307.4,2306.2,8.54281]
[1726509267830,4.33518,2306.8,2306.2,8.54281]
[1726509267990,8.6703,2306.8,2306.2,8.54291]
[1726509268314,4.3352,2306.7,2306.2,9.83464177]
[1726509268894,4.33475,2307.0,2306.5,4.33555]
[1726509269096,4.33436,2307.2,2306.6,4.768915]
[1726509269295,4.33435,2307.2,2306.7,4.3351]
[1726509269499,4.33435,2307.2,2306.6,4.33536]
[1726509269698,4.33435,2307.2,2306.6,4.768806]
[1726509269699,4.33446,2307.1,2306.6,4.768806]
[1726509269931,4.33435,2307.2,2306.6,4.768806]
[1726509269932,4.33435,2307.2,2306.7,4.3351]
[1726509270108,4.33435,2307.2,2306.6,4.768806]
[1726509270109,8.66869,2307.2,2306.6,4.768806]
[1726509270421,4.1501,2307.3,2306.4,4.33561]
[1726509270626,4.33472,2307.0,2306.4,4.33561]
[1726509270925,8.66914,2307.1,2306.6,4.33526]
[1726509271098,4.33476,2307.0,2306.4,8.67128]
[1726509271298,4.33476,2307.0,2306.4,10.05743642]
[1726509271912,4.33492,2306.9,2306.4,5.72179642]
[1726509272223,4.33513,2306.8,2306.2,8.54278]
[1726509272429,4.33513,2306.8,2306.3,4.33578]
[1726509273290,4.33543,2306.6,2306.2,5.06487977]
[1726509273501,8.67029,2306.8,2306.3,4.33593]
[1726509273807,8.6703,2306.8,2306.3,4.33593]
[1726509274010,4.33474,2307.0,2306.3,1.287895]
[1726509274324,4.33473,2307.0,2306.4,8.67134]
[1726509274501,4.33473,2307.0,2306.5,4.33556]
[1726509274709,4.33472,2307.0,2306.6,4.33536]
[1726509275095,4.33445,2307.1,2306.6,4.33529]
[1726509275627,4.33445,2307.1,2306.7,0.05612808]
[1726509275840,4.33467,2307.0,2306.7,0.05612808]
[1726509276195,4.33485,2306.9,2306.5,0.433567]
[1726509276390,5.201582,2307.0,2306.6,0.05620388]
[1726509276701,4.33467,2307.0,2306.6,0.05620388]
[1726509277412,4.33486,2306.9,2306.6,0.05620388]
[1726509277622,4.33446,2307.1,2306.2,8.54293]
[1726509277929,8.66869,2307.2,2306.7,4.33516]
[1726509278099,4.33431,2307.2,2306.7,0.433516]
[1726509278305,3.0,2307.4,2306.3,5.24666398]
[1726509278306,11.66802,2307.4,2306.8,8.9323683]
[1726509278495,4.33407,2307.3,2306.9,5.22804683]
[1726509278697,4.33407,2307.3,2306.8,8.84567595]
[1726509279005,7.334,2307.4,2306.9,4.47745989]
[1726509279203,4.78738026,2307.7,2307.2,4.33422]
[1726509279434,4.33166,2308.6,2307.3,8.87528219]
[1726509279435,4.4754,2308.4,2307.3,8.87528219]
[1726509279616,4.33272,2308.1,2307.5,4.33358]
[1726509279823,4.33272,2308.1,2307.6,0.14203676]
[1726509279824,4.33279,2308.0,2307.6,0.14203676]
[1726509280197,4.33272,2308.1,2307.6,4.38884779]
[1726509280395,4.3328,2308.0,2307.6,0.05537779]
[1726509280601,4.33272,2308.1,2307.6,4.38876779]
[1726509280891,8.66536,2308.1,2307.6,4.38876779]
[1726509281091,4.33267,2308.1,2307.6,4.38876779]
[1726509281292,4.7862328,2308.3,2307.7,0.08665476]
[1726509281604,4.4754,2308.4,2307.9,4.33293]
[1726509281804,4.3323,2308.3,2308.0,1.37196653]
[1726509282119,4.3323,2308.3,2308.0,0.05450762]
[1726509282433,4.4754,2308.4,2307.8,8.78692]
[1726509282636,4.4754,2308.4,2308.1,0.05432944]
[1726509282939,8.80743,2308.4,2307.8,14.431971]
[1726509283092,8.80743,2308.4,2308.2,0.05425374]
[1726509283288,8.80743,2308.4,2307.8,10.098951]
[1726509283728,8.80743,2308.4,2307.9,0.0544467]
[1726509284494,4.33222,2308.3,2307.9,0.0544467]
[1726509285239,4.33252,2308.2,2307.6,8.66679]
[1726509285411,4.33252,2308.2,2307.7,0.05459132]
[1726509286139,4.3326,2308.1,2307.7,0.05459132]
[1726509286697,4.33278,2308.0,2307.7,0.05459132]
[1726509287034,4.33278,2308.0,2307.4,4.33374]
[1726509287035,4.33304,2307.9,2307.4,4.33374]
[1726509287232,4.33304,2307.9,2307.5,0.0547428]
[1726509287436,4.33278,2308.0,2307.5,0.0547428]
[1726509287733,4.33308,2307.9,2307.5,0.0547428]
[1726509287899,4.33278,2308.0,2307.5,0.0547428]
[1726509288101,4.33303,2307.9,2307.5,0.0547428]
[1726509288298,4.33311,2307.9,2307.5,0.0547428]
[1726509289351,7.33221,2308.3,2307.8,4.33298]
[1726509289652,8.80745,2308.4,2307.9,0.05443987]
[1726509289891,8.80745,2308.4,2307.9,4.38732987]
[1726509290046,4.3322,2308.3,2307.9,0.05443987]
[1726509290252,8.80745,2308.4,2307.9,0.05443987]
[1726509290611,4.33238,2308.2,2307.9,0.05443987]
[1726509291045,4.33269,2308.1,2307.5,9.63900828]
[1726509291348,4.33269,2308.1,2307.6,0.05393579]
[1726509291715,4.33238,2308.2,2307.6,0.05393579]
[1726509292021,4.33269,2308.1,2307.6,4.38742579]
[1726509293048,4.33238,2308.2,2307.7,4.3333]
[1726509293347,4.33238,2308.2,2307.8,0.05380482]
[1726509293845,4.33238,2308.2,2307.7,4.3333]
[1726509294142,8.66488,2308.2,2307.9,0.05374276]
[1726509294346,4.33238,2308.2,2307.8,0.05381848]
[1726509294642,8.80752,2308.4,2307.9,4.38659959]
[1726509294813,4.33221,2308.3,2307.9,0.05374959]
[1726509295551,8.80752,2308.4,2308.0,8.61284]
[1726509295552,3.0,2308.4,2308.0,8.61284]
[1726509295753,7.332,2308.4,2308.0,4.2802]
[1726509295930,7.332,2308.4,2308.1,0.05359817]
[1726509296124,4.33175,2308.6,2308.1,4.38603817]
[1726509296325,4.33175,2308.6,2308.1,4.47268185]
[1726509296525,4.33144,2308.7,2308.3,4.33217]
[1726509296727,4.3439177,2308.8,2308.3,8.66411]
[1726509296931,4.3439177,2308.8,2308.4,0.05337109]
[1726509297130,0.0380177,2308.8,2308.5,4.33167]
[1726509297330,0.0380177,2308.8,2308.5,8.84987]
[1726509297553,0.0380177,2308.8,2308.7,4.33144]
[1726509297780,0.0380177,2308.8,2308.7,8.66288]
[1726509297947,0.0380177,2308.8,2308.7,17.565425]
[1726509298281,0.0380177,2308.8,2308.7,13.233985]
[1726509298579,0.0380177,2308.8,2308.7,14.54716363]
[1726509298782,0.0380177,2308.8,2308.7,10.21572363]
[1726509299089,0.0380177,2308.8,2308.7,14.54716363]
[1726509299378,0.0380177,2308.8,2308.7,18.87860363]
[1726509299689,0.0380177,2309.5,2308.8,4.2945]
[1726509299839,0.0380177,2309.5,2309.4,12.95474]
[1726509300038,0.0380177,2309.5,2309.4,13.00656254]
[1726509300279,0.0380177,2309.5,2309.4,8.67644254]
[1726509300490,0.0380177,2309.5,2309.4,0.05182254]
[1726509300839,4.3679577,2309.5,2309.0,4.33083]
[1726509301159,0.0380177,2309.5,2309.1,4.38133426]
[1726509302549,0.0380177,2309.5,2309.1,0.05068426]
[1726509302750,4.3305,2309.2,2309.1,0.05068426]
[1726509302952,4.3275,2309.3,2308.5,4.33166]
[1726509303170,4.33069,2309.1,2308.5,8.66337]
[1726509303389,4.3275,2309.3,2308.8,4.33124]
[1726509303683,0.0380177,2309.5,2309.1,4.33056]
[1726509303878,0.0380177,2309.5,2309.2,4.41709247]
[1726509304045,0.0380177,2309.5,2309.4,4.33012]
[1726509304242,0.0380177,2309.5,2309.4,13.20314]
[1726509305614,0.0380177,2309.5,2309.2,4.33036]
[1726509305800,0.0380177,2309.5,2309.4,0.04877057]
[1726509305975,0.0380177,2309.5,2309.3,0.04884619]
[1726509306178,0.0380177,2309.5,2309.4,4.37876778]
[1726509306371,0.0380177,2309.5,2309.4,4.46535341]
[1726509306576,0.0380177,2309.5,2309.4,4.37876778]
[1726509308889,0.0380177,2309.5,2309.4,8.79547304]
[1726509309079,0.0380177,2309.5,2309.4,13.85081168]
[1726509309829,0.0380177,2309.5,2309.4,0.04864778]